fUST/lending_fUST_20240403
["ID","MTS","AMOUNT","RATE_DAILY","PERIOD"]
[321377750,1712099444873,-352.58187005,0.00038044,2]
[321377751,1712099444883,-172.30595813,0.00038044,4]
[321377752,1712099444893,-332.34881082,0.00038145,4]
[321377753,1712099444902,-1000.0,0.00038214,11]
[321377754,1712099444911,-1000.0,0.00038214,4]
[321377755,1712099444921,-151.0,0.00038356,2]
[321377756,1712099444930,-151.0,0.00038356,2]
[321377757,1712099444941,-151.0,0.00038356,2]
[321377758,1712099444950,-151.0,0.00038356,2]
[321377759,1712099444962,-151.0,0.00038356,2]
[321377760,1712099444972,-274.60983,0.00038356,2]
[321377761,1712099444982,-151.0,0.00038356,2]
[321377762,1712099444991,-151.0,0.00038356,2]
[321377763,1712099445001,-151.0,0.00038356,2]
[321377764,1712099445010,-151.0,0.00038356,2]
[321377765,1712099445019,-151.0,0.00038356,2]
[321377766,1712099445029,-158.517464,0.00038356,2]
[321377767,1712099445038,-500.0,0.00038356,2]
[321377768,1712099445048,-151.0,0.00038356,2]
[321377769,1712099445057,-151.0,0.00038356,2]
[321377770,1712099445066,-171.782084,0.00038356,2]
[321377771,1712099445077,-5000.0,0.00038356,6]
[321377772,1712099445088,-5000.0,0.00038356,6]
[321377773,1712099445097,-4868.92244233,0.00038356,6]
[321377774,1712099445106,-5945.8442891,0.00038356,2]
[321377775,1712099445115,-400.0,0.00038403,3]
[321377776,1712099445125,-500.0,0.0003841,2]
[321377777,1712099445134,-500.0,0.00038465,2]
[321377778,1712099445144,-151.0,0.000385,2]
[321377779,1712099445153,-500.0,0.00038568,120]
[321377780,1712099445163,-500.0,0.00038568,120]
[321377781,1712099445172,-500.0,0.00038568,120]
[321377782,1712099445181,-500.0,0.00038568,120]
[321377783,1712099445190,-0.26932909,0.00038568,120]
[321378047,1712100358397,2876.56238161,0.00039533,30]
[321378246,1712100638729,-996.50213,0.00033244,4]
[321378253,1712100638785,-3346.2600544,0.00033244,4]
[321378255,1712100638794,-2109.94118566,0.00033245,2]
[321378258,1712100638803,-400.0,0.00033246,2]
[321378260,1712100638812,-400.0,0.00033246,2]
[321378261,1712100638821,-1238.30909659,0.00033248,4]
[321378262,1712100638829,-2398.07845103,0.00033931,120]
[321378333,1712100642994,-889.12561474,0.00033244,4]
[321378339,1712100643933,-3749.80020969,0.00033244,4]
[321378340,1712100643943,-2034.8576241,0.00033625,2]
[321378341,1712100643952,-3851.92154897,0.00033931,120]
[321378342,1712100643962,-936.40585158,0.00034891,2]
[321378343,1712100643972,-416.52846628,0.000349,2]
[321378344,1712100643983,-364.34973665,0.00034998,4]
[321378345,1712100643992,-1321.99597322,0.00034998,4]
[321378347,1712100648251,-777.58402678,0.00034998,4]
[321378348,1712100648263,-1045.0271767,0.00034999,4]
[321378349,1712100648273,-4906.44308869,0.00034999,4]
[321378350,1712100648283,-31974.29446161,0.00035,2]
[321378351,1712100648295,-8060.55910488,0.00035,2]
[321378352,1712100648304,-594.7079274,0.00035,2]
[321378353,1712100648315,-416.52846627,0.00037167,2]
[321378354,1712100648325,-5000.0,0.00038356,6]
[321378355,1712100648334,-153.0,0.00038438,2]
[321378356,1712100648345,-500.0,0.000385,4]
[321378357,1712100648356,-499.73067091,0.00038568,120]
[321378358,1712100648365,-500.0,0.00038568,120]
[321378359,1712100648375,-500.0,0.00038568,120]
[321378360,1712100648383,-500.0,0.00038568,120]
[321378361,1712100648393,-500.0,0.00038568,120]
[321378363,1712100648403,-500.0,0.00038568,120]
[321378365,1712100648412,-207.39,0.00038568,120]
[321378367,1712100648422,-500.0,0.00038568,120]
[321378369,1712100648431,-500.0,0.00038568,120]
[321378371,1712100648441,-633.12,0.00038568,120]
[321378373,1712100648451,-596.13,0.00038568,120]
[321378375,1712100648460,-350.0,0.00038568,2]
[321378376,1712100648470,-286.04965536,0.000388,120]
[321378377,1712100648479,-5000.0,0.00038899,6]
[321378378,1712100648489,-6465.04345636,0.000389,2]
[321378975,1712101843078,-2588.68185367,0.00034965,4]
[321378976,1712101843088,-4342.7621844,0.00034966,4]
[321378977,1712101843098,-400.0,0.00034999,2]
[321378978,1712101843109,-400.0,0.00034999,2]
[321378979,1712101843119,-128.14001036,0.00035,2]
[321379106,1712102052369,816.32789437,0.00039529,30]
[321379149,1712102076374,8833.41733466,0.0003,120]
[321379247,1712102311426,6000.830515,0.00030583,120]
[321379349,1712103032747,-154.9690062,0.00028196,2]
[321379350,1712103032756,-3232.25585439,0.00028196,2]
[321379351,1712103032766,-300.0,0.00028196,2]
[321379352,1712103032776,-300.0,0.00028196,2]
[321379353,1712103032785,-5000.0,0.00028197,3]
[321379354,1712103032795,-150.0,0.00028483,2]
[321379355,1712103032804,-695.13231472,0.0003,4]
[321379356,1712103032813,-420.0,0.00030446,2]
[321379357,1712103032822,-260.0,0.00030446,2]
[321379358,1712103032831,-5181.927305,0.00031757,120]
[321379359,1712103032841,-197.0030957,0.00032248,2]
[321379360,1712103032850,-1502.5702788,0.00033148,2]
[321379361,1712103032859,-417.052493,0.00033205,2]
[321379362,1712103032868,-150.0,0.00033483,2]
[321379363,1712103032877,-2932.0626405,0.00034155,2]
[321379364,1712103032887,-173.16529769,0.000349,2]
[321379365,1712103032896,-10003.35207628,0.00035,2]
[321379366,1712103032905,-5002.75,0.00035,2]
[321379367,1712103032914,-384.7731369,0.00035,2]
[321379368,1712103032923,-3279.00737164,0.00035,4]
[321379369,1712103032933,-3310.6348,0.00035893,30]
[321379370,1712103032941,-948.02,0.00036,2]
[321379371,1712103032951,-255.19569326,0.0003624,2]
[321379372,1712103032960,-5181.927305,0.00037049,120]
[321379373,1712103032969,-277.68564419,0.00037792,2]
[321379374,1712103032978,-3059.08080185,0.00037891,4]
[321379375,1712103032987,-276.1036214,0.00037892,4]
[321379376,1712103032996,-363.20833943,0.00037892,4]
[321379377,1712103033005,-1574.61284896,0.00037892,4]
[321379378,1712103033071,-332.34881082,0.00037892,4]
[321379379,1712103033081,-16850.0094,0.00037893,30]
[321379380,1712103033090,-306.0,0.00037945,2]
[321379381,1712103033099,-1000.0,0.00038153,6]
[321379382,1712103033109,-500.0,0.00038356,2]
[321379383,1712103033118,-4868.92244233,0.00038356,6]
[321379384,1712103033127,-5945.8442891,0.00038356,2]
[321379385,1712103033135,-500.0,0.0003841,2]
[321379386,1712103033144,-500.0,0.00038465,2]
[321379387,1712103033153,-500.0,0.00038568,120]
[321379388,1712103033162,-500.0,0.00038568,120]
[321379389,1712103033172,-500.0,0.00038568,120]
[321379390,1712103033181,-500.27,0.00038568,120]
[321379391,1712103033190,-277.68564418,0.00038613,2]
[321379392,1712103033199,-276.00915328,0.000388,2]
[321379580,1712103040452,-658.37274924,0.00027914,3]
[321379743,1712104140950,1562.2887,0.00039525,30]
[321379744,1712104144776,5000.0,0.00026,3]
[321379745,1712104152583,4428.98706299,0.00026,3]
[321379749,1712104206960,6000.0,0.00039525,30]
[321379771,1712104232385,-192.5874711,0.00026504,2]
[321379772,1712104232394,-2017.86391126,0.00026505,2]
[321379821,1712104238344,-1214.39194313,0.00026505,2]
[321379823,1712104238354,-12643.8738203,0.00026506,2]
[321379825,1712104238363,-205.25867474,0.00026506,2]
[321379827,1712104238371,-208.526246,0.0003418,2]
[321379829,1712104238381,-1211.79888727,0.00034343,120]
[321379876,1712104243573,-461.0,0.00034343,120]
[321379950,1712104246387,-918.16476473,0.00034343,120]
[321379951,1712104246397,-621.29981169,0.00034818,2]
[321379952,1712104246407,-150.95471359,0.00035272,2]
[321379953,1712104246416,-620.06499058,0.00036559,2]
[321379954,1712104246425,-202.87481799,0.00037425,2]
[321379955,1712104246434,-168.63812959,0.00037816,8]
[321379956,1712104246443,-150.36925572,0.00037816,2]
[321379957,1712104246452,-34022.8537,0.00037885,30]
[321379958,1712104246517,-170.239067,0.00037916,2]
[321379959,1712104246541,-200.0,0.00037948,120]
[321379960,1712104246551,-200.0,0.00038298,120]
[321379961,1712104246563,-10000.0,0.000385,30]
[321379962,1712104246572,-1500.0,0.000388,2]
[321379963,1712104246581,-182.11513353,0.00038898,4]
[321379964,1712104246590,-4690.52173264,0.00038898,4]
[321379966,1712104246599,-155.85458783,0.00038898,4]
[321379967,1712104246608,-419.4372247,0.00038898,7]
[321379968,1712104246618,-2317.7067515,0.00038898,4]
[321379969,1712104246627,-2165.58339503,0.00038898,4]
[321379970,1712104246636,-172.30595813,0.00038898,4]
[321379971,1712104246645,-360.3778764,0.00038898,4]
[321379972,1712104246654,-352.58187005,0.00038898,2]
[321379973,1712104246663,-463.70000041,0.00038898,4]
[321379974,1712104246672,-800.6782083,0.00038898,4]
[321379975,1712104246682,-262.03429965,0.00038898,2]
[321379976,1712104246691,-1261.15269076,0.00038899,2]
[321379977,1712104246700,-48603.02650954,0.000389,2]
[321379978,1712104246709,-151.0,0.000389,2]
[321379979,1712104246720,-151.0,0.000389,2]
[321379980,1712104246729,-151.0,0.000389,2]
[321379981,1712104246739,-274.60983,0.000389,2]
[321379982,1712104246748,-151.0,0.000389,2]
[321379983,1712104246758,-155.224295,0.000389,2]
[321379984,1712104246768,-151.0,0.000389,2]
[321379985,1712104246777,-158.517464,0.000389,2]
[321379986,1712104246786,-150.36925572,0.000389,2]
[321379987,1712104246795,-151.0,0.000389,2]
[321379988,1712104246806,-654.56770744,0.0003899,7]
[321379989,1712104246815,-10995.11884478,0.00039,30]
[321379990,1712104246824,-4726.0,0.00039,2]
[321379991,1712104246834,-151.0,0.00039,2]
[321379992,1712104246843,-151.0,0.00039,2]
[321379993,1712104246852,-151.0,0.00039,2]
[321379994,1712104246861,-151.0,0.00039,2]
[321379995,1712104246871,-151.0,0.00039,2]
[321379996,1712104246881,-200.0,0.0003908,120]
[321379997,1712104246890,-150.95471359,0.00039191,2]
[321379998,1712104246899,-250.41575527,0.00039191,2]
[321379999,1712104246908,-200.0,0.00039267,120]
[321380000,1712104246918,-200.0,0.00039278,120]
[321380001,1712104246927,-200.0,0.00039313,120]
[321380002,1712104246938,-300.0,0.000395,20]
[321380003,1712104246947,-151.0,0.00039524,2]
[321380004,1712104246959,-151.0,0.00039524,2]
[321380005,1712104246968,-270.86404226,0.00039525,2]
[321380006,1712104246978,-6099.96646841,0.00039525,2]
[321380007,1712104246986,-19924.60656822,0.00039525,2]
[321380008,1712104246995,-327.10935273,0.00039525,2]
[321380009,1712104247006,-20763.72418466,0.00039525,2]
[321380010,1712104247015,-15263.12558535,0.00039525,2]
[321380011,1712104247024,-151.0,0.00039525,2]
[321380012,1712104247034,-151.0,0.00039525,2]
[321380013,1712104247044,-160.015482,0.00039525,2]
[321380014,1712104247054,-198.44424,0.00039525,2]
[321380015,1712104247062,-151.0,0.00039525,2]
[321380016,1712104247073,-151.0,0.00039525,2]
[321380017,1712104247082,-151.0,0.00039525,2]
[321380018,1712104247091,-151.0,0.00039525,2]
[321380019,1712104247100,-151.0,0.00039525,2]
[321380020,1712104247109,-151.0,0.00039525,2]
[321380021,1712104247118,-151.0,0.00039525,2]
[321380022,1712104247128,-151.0,0.00039525,2]
[321380023,1712104247137,-151.0,0.00039525,2]
[321380024,1712104247146,-371.73030963,0.00039527,4]
[321380025,1712104247155,-788.68173232,0.00039527,4]
[321380026,1712104247165,-364.34973665,0.00039528,4]
[321380027,1712104247173,-1321.99597322,0.00039528,4]
[321380028,1712104247183,-2071.58828394,0.00039528,5]
[321380029,1712104247191,-156.30527729,0.00039531,4]
[321380030,1712104247201,-1127.14113379,0.00039531,4]
[321380031,1712104247210,-686.21227838,0.00039531,4]
[321380032,1712104247219,-500.0,0.00039531,5]
[321380033,1712104247227,-161.56321522,0.00039533,2]
[321380034,1712104247237,-1707.54398584,0.00039626,2]
[321380035,1712104247246,-151.0,0.00039626,2]
[321380036,1712104247255,-150.5,0.00039649,35]
[321380037,1712104247264,-463.0,0.00039649,35]
[321380038,1712104247273,-4968.0,0.00039649,35]
[321380039,1712104247282,-150.5,0.00039651,35]
[321380040,1712104247292,-171.782084,0.00039659,2]
[321380041,1712104247301,-150.5,0.00039659,35]
[321380042,1712104247312,-463.0,0.00039659,35]
[321380043,1712104247320,-210.38,0.00039659,35]
[321380044,1712104247329,-4968.0,0.00039659,35]
[321380045,1712104247338,-150.5,0.00039661,35]
[321380046,1712104247347,-150.5,0.00039669,35]
[321380047,1712104247356,-463.0,0.00039669,35]
[321380048,1712104247365,-150.5,0.00039669,35]
[321380049,1712104247374,-4968.0,0.00039669,35]
[321380050,1712104247382,-150.5,0.00039671,35]
[321380051,1712104247392,-500.0,0.000397,2]
[321380052,1712104247401,-444.66312306,0.00039715,4]
[321380053,1712104247411,-553.7813067,0.00039715,4]
[321380054,1712104247421,-888.95253308,0.00039715,4]
[321380055,1712104247430,-263.30030311,0.00039715,4]
[321380056,1712104247439,-240.67217209,0.00039715,4]
[321380057,1712104247449,-219.43952286,0.00039715,4]
[321380058,1712104247459,-155.92882395,0.00039715,4]
[321380059,1712104247468,-230.32200629,0.00039715,4]
[321380060,1712104247478,-150.0,0.00039715,2]
[321380061,1712104247487,-286.19476795,0.00039716,5]
[321380062,1712104247503,-17509.27546808,0.00039716,3]
[321380063,1712104247564,-475.20935964,0.00039716,3]
[321380068,1712104345551,338.25,0.00039525,30]
[321380226,1712105434223,-153.52146427,0.00033799,60]
[321380228,1712105434232,-304.2987002,0.00033899,7]
[321380230,1712105434241,-8429.24921353,0.00033988,4]
[321380232,1712105434251,-4342.7621844,0.00033989,4]
[321380234,1712105434261,-1000.0,0.00034,2]
[321380236,1712105434270,-40019.82561076,0.00035,2]
[321380238,1712105434279,-667.41417189,0.00035,4]
[321380240,1712105434288,-150.0,0.00037569,2]
[321380242,1712105434298,-3374.098095,0.0003762,120]
[321380244,1712105434308,-936.40585158,0.00037776,2]
[321380246,1712105434319,-4903.49202481,0.00037877,30]
[321380413,1712105444056,-150.0,0.0003552,2]
[321380414,1712105444066,-5366.28417519,0.00037877,30]
[321380416,1712105444075,-168.63812958,0.00038026,8]
[321380418,1712105444084,-208.526246,0.00038126,2]
[321380420,1712105444093,-1333.33333333,0.00039318,10]
[321380422,1712105444103,-150.93962415,0.00039399,2]
[321380424,1712105444111,-300.0,0.000395,20]
[321380426,1712105444121,-389.21003649,0.00039523,4]
[321380428,1712105444130,-1500.0,0.00039617,2]
[321380430,1712105444139,-1536.78958722,0.00039626,2]
[321380432,1712105444149,-377.11153504,0.0003966,5]
[321380434,1712105444158,-3478.0,0.000397,35]
[321380436,1712105444168,-324.0,0.000397,35]
[321380438,1712105444178,-473.0,0.000397,2]
[321380440,1712105444188,-150.5,0.000397,35]
[321380442,1712105444197,-3478.0,0.0003971,35]
[321380444,1712105444206,-324.0,0.0003971,35]
[321380446,1712105444215,-150.5,0.0003971,35]
[321380448,1712105444225,-679.41918016,0.00039714,2]
[321380450,1712105444234,-3094.64844352,0.00039714,120]
[321380452,1712105444243,-288.85685848,0.00039714,2]
[321380453,1712105444253,-154.95351395,0.00039715,4]
[321380455,1712105444263,-154.95351395,0.00039715,4]
[321380457,1712105444273,-154.95351395,0.00039715,4]
[321380459,1712105444282,-154.95351395,0.00039715,4]
[321380461,1712105444291,-154.95351395,0.00039715,4]
[321380463,1712105444301,-7965.41087771,0.00039715,4]
[321380465,1712105444311,-275.05720824,0.00039715,4]
[321380467,1712105444320,-4414.10601474,0.00039716,4]
[321380469,1712105444330,-13175.0631055,0.00039717,3]
[321380482,1712105444443,-4445.70280881,0.00039717,3]
[321380581,1712105448963,-619.28714069,0.00039717,3]
[321380582,1712105448975,-546.22405807,0.00039717,3]
[321380583,1712105448987,-6420.0,0.00039717,3]
[321380591,1712105453712,-452.84288518,0.00039716,4]
[321380615,1712105652237,50906.41697501,0.00039517,60]
[321380626,1712105676158,1443.84188462,0.0002,120]
[321380627,1712105678424,485.67441333,0.00039517,60]
[321380720,1712106632798,-7024.37434461,0.00034999,4]
[321380722,1712106632807,-1346.77743993,0.00035,2]
[321380724,1712106632817,-26458.0867611,0.00035,2]
[321380726,1712106632827,-736.98425401,0.000351,2]
[321380728,1712106632837,-150.0,0.000361,7]
[321380730,1712106632845,-2530.573571,0.00037515,120]
[321380731,1712106632855,-1919.7077351,0.00037597,2]
[321380733,1712106632866,-159.3170276,0.00037604,2]
[321380735,1712106632876,-10138.0332751,0.0003762,2]
[321380738,1712106632886,-170.51752689,0.00039317,2]
[321380739,1712106632897,-1500.0,0.00039418,2]
[321380741,1712106632908,-300.0,0.000395,20]
[321380743,1712106632918,-594.7079274,0.00039514,2]
[321380745,1712106632929,-750.83808353,0.00039516,4]
[321380747,1712106632939,-446.65791558,0.00039517,2]
[321380749,1712106632948,-11473.87819959,0.00039517,4]
[321380751,1712106632958,-805.98,0.00039521,2]
[321380753,1712106632969,-805.98,0.00039521,2]
[321380755,1712106632979,-805.98,0.00039521,2]
[321380757,1712106632988,-805.98,0.00039521,2]
[321380759,1712106632998,-805.98,0.00039521,2]
[321380761,1712106633008,-805.98,0.00039521,2]
[321380763,1712106633018,-805.98,0.00039521,2]
[321380765,1712106633027,-805.98,0.00039521,2]
[321380767,1712106633036,-805.98,0.00039521,2]
[321380769,1712106633045,-805.98,0.00039521,2]
[321380771,1712106633054,-2129.22531559,0.00039522,2]
[321380773,1712106633063,-9495.07273054,0.00039522,2]
[321380775,1712106633073,-619.27680382,0.00039522,2]
[321380879,1712106638916,-308.45638369,0.00039522,2]
[321380881,1712106638928,-6805.18722419,0.00039522,2]
[321380979,1712106643101,-3655.3035901,0.00039522,2]
[321380981,1712106643121,-6296.05,0.00039522,2]
[321380996,1712106643928,-20780.00257625,0.00039522,2]
[321381019,1712106646843,-31959.99845015,0.00039522,2]
[321381020,1712106646852,-147.33573666,0.00039522,2]
[321381208,1712107840260,-155.26247165,0.00034998,4]
[321381209,1712107840270,-155.13688656,0.00034998,2]
[321381210,1712107840279,-4917.06204123,0.00034999,4]
[321381211,1712107840288,-204.98866807,0.00035,2]
[321381260,1712107843349,-9678.245821,0.00035,2]
[321381261,1712107843388,-1119.40958769,0.00035,2]
[321381262,1712107843400,-7496.09789526,0.00035,2]
[321381271,1712107846133,-500.0,0.00035,2]
[321381420,1712109038225,-3095.61534242,0.00034998,4]
[321381684,1712109040335,-499.32893817,0.00034998,4]
[321381688,1712109040362,-355.33,0.00034998,4]
[321383071,1712109566555,13154.74454829,0.00039517,30]
[321383163,1712110232527,-281.1715877,0.00033671,2]
[321383165,1712110232538,-4052.19211211,0.00033675,4]
[321383416,1712110239112,-864.86992912,0.00033675,4]
[321383419,1712110239121,-2792.08038238,0.00033676,4]
[321387120,1712111432725,-4917.06204123,0.00033302,4]
[321387121,1712111432735,-7316.52147725,0.00033303,4]
[321387122,1712111432744,-2110.69798225,0.00033304,2]
[321387123,1712111432754,-400.0,0.00033304,2]
[321387124,1712111432764,-4381.325533,0.00033316,120]
[321387125,1712111432773,-939.35259579,0.00033525,2]
[321387126,1712111432782,-151.0,0.00034601,4]
[321387127,1712111432792,-5014.40113191,0.00034999,4]
[321387128,1712111432802,-21036.11159447,0.00035,2]
[321387129,1712111432811,-1109.86870362,0.00035,2]
[321387130,1712111432821,-173.959919,0.00035,2]
[321387131,1712111432830,-595.1551022,0.00035771,2]
[321387132,1712111432841,-560.0,0.00035772,2]
[321387133,1712111432851,-3458.3428,0.00035879,30]
[321387134,1712111432860,-278.28405504,0.0003716,2]
[321387135,1712111432869,-307.0797791,0.0003726,2]
[321387136,1712111432879,-389.0744216,0.00037808,2]
[321387137,1712111432888,-19266.57166129,0.00037879,30]
[321387499,1712111440766,-683.64553254,0.00037879,30]
[321388754,1712111569483,3285.994149,0.00030583,120]
[321388756,1712111712027,8673.54059422,0.00039509,30]
[321388757,1712111792843,9340.60292827,0.00039509,30]
[321388760,1712112210368,2500.0,0.00039509,30]
[321388838,1712112637927,-4064.73415403,0.00034976,4]
[321388840,1712112637937,-155.01395126,0.00034997,4]
[321388842,1712112637946,-400.0,0.00034998,2]
[321388844,1712112637955,-4917.06204123,0.00034999,4]
[321388846,1712112637964,-13949.60646665,0.00035,2]
[321388848,1712112637974,-595.1551022,0.00035348,2]
[321388850,1712112637983,-2464.495611,0.00035349,120]
[321388852,1712112637992,-318.0,0.00037526,2]
[321388854,1712112638002,-22834.8675,0.00037869,30]
[321388856,1712112638011,-154.0,0.00038,2]
[321388858,1712112638021,-753.80610842,0.00038354,4]
[321388860,1712112638029,-310.73084029,0.00038355,2]
[321388862,1712112638038,-5089.75843559,0.00038356,6]
[321388864,1712112638047,-500.0,0.00038356,2]
[321388866,1712112638056,-42708.2960949,0.00038356,2]
[321388868,1712112638065,-609.5145262,0.00038356,2]
[321388870,1712112638074,-500.0,0.0003841,2]
[321388878,1712112638084,-500.0,0.00038465,2]
[321388881,1712112638163,-616.84736539,0.0003852,2]
[321388883,1712112638173,-508.96,0.00038717,120]
[321388885,1712112638183,-500.0,0.00038717,120]
[321388887,1712112638192,-500.0,0.00038717,120]
[321388889,1712112638201,-500.27,0.00038717,120]
[321388891,1712112638211,-1011.4230913,0.00039311,10]
[321388893,1712112638220,-1500.0,0.00039409,2]
[321388895,1712112638230,-2378.0,0.000395,2]
[321388896,1712112638239,-300.0,0.000395,20]
[321388898,1712112638248,-13658.78556702,0.00039509,2]
[321388900,1712112638258,-8544.860568,0.00039509,2]
[321388902,1712112638267,-963.81257654,0.00039509,2]
[321388905,1712112638280,-2978.07349491,0.00039509,2]
[321389170,1712113832301,-154.620569,0.000325,4]
[321389171,1712113832311,-4779.66217442,0.00034963,4]
[321389172,1712113832327,-137.39986681,0.00034963,4]
[321389173,1712113832336,-210.12507407,0.00034963,4]
[321389275,1712113838065,-3854.60907996,0.00034963,4]
[321389278,1712113838074,-2110.69798225,0.00034964,2]
[321389281,1712113838083,-400.0,0.00034965,2]
[321389284,1712113838091,-595.1551022,0.00035825,2]
[321389287,1712113838100,-1938.6276658,0.00035826,2]
[321389290,1712113838109,-10515.558216,0.00036197,2]
[321389292,1712113838118,-166.224072,0.00036219,2]
[321389295,1712113838128,-255.27892519,0.0003624,2]
[321389296,1712113838137,-3272.61974,0.00036749,120]
[321389298,1712113838146,-192.9224074,0.00036845,2]
[321389300,1712113838155,-159.7579457,0.00036865,2]
[321389302,1712113838165,-160.0,0.00037492,2]
[321389304,1712113838174,-159.11247171,0.00037729,4]
[321389307,1712113838184,-4694.7473,0.00037866,30]
[321389308,1712113838194,-1000.0,0.00038,15]
[321389311,1712113838203,-153.0,0.00038578,2]
[321389312,1712113838213,-153.0,0.00038578,2]
[321389315,1712113838222,-153.0,0.00038767,2]
[321389316,1712113838233,-2000.0,0.000388,20]
[321389319,1712113838243,-153.0,0.00038904,2]
[321389321,1712113838252,-153.0,0.00038904,2]
[321389323,1712113838262,-153.0,0.00038904,2]
[321389325,1712113838271,-153.0,0.00038904,2]
[321389327,1712113838281,-153.0,0.00038904,2]
[321389328,1712113838290,-153.0,0.00038904,2]
[321389331,1712113838300,-153.0,0.00038904,2]
[321389332,1712113838310,-153.0,0.00038904,2]
[321389334,1712113838319,-153.0,0.00038904,2]
[321389336,1712113838328,-153.0,0.00038904,2]
[321389339,1712113838338,-153.0,0.00038904,2]
[321389342,1712113838347,-153.0,0.00038904,2]
[321389358,1712113838423,-153.0,0.00038904,2]
[321389360,1712113838433,-153.0,0.00038904,2]
[321389363,1712113838442,-153.0,0.00038904,2]
[321389365,1712113838451,-153.0,0.00038904,2]
[321389368,1712113838461,-153.0,0.00038904,2]
[321389370,1712113838469,-368.204256,0.00038904,2]
[321389373,1712113838479,-153.0,0.00038904,2]
[321389376,1712113838490,-171.98056994,0.00039113,2]
[321389379,1712113838499,-153.0,0.00039178,2]
[321389382,1712113838508,-153.0,0.00039178,2]
[321389384,1712113838517,-153.0,0.00039178,2]
[321389387,1712113838526,-156.0987657,0.00039318,30]
[321389390,1712113838535,-185.52270336,0.00039406,2]
[321389393,1712113838544,-300.0,0.000395,20]
[321389395,1712113838554,-2001.5,0.000395,30]
[321389398,1712113838563,-151.0,0.00039506,2]
[321389401,1712113838572,-151.0,0.00039506,2]
[321389404,1712113838582,-151.0,0.00039506,2]
[321389407,1712113838592,-151.0,0.00039506,2]
[321389409,1712113838601,-151.0,0.00039506,2]
[321389412,1712113838610,-151.0,0.00039506,2]
[321389415,1712113838619,-151.0,0.00039506,2]
[321389418,1712113838628,-7204.24287107,0.00039506,2]
[321389420,1712113838638,-264.18266434,0.00039506,2]
[321389423,1712113838648,-622.14610192,0.00039506,2]
[321389426,1712113838658,-4004.81634855,0.00039506,2]
[321389429,1712113838667,-1003.35512562,0.00039506,2]
[321389432,1712113838677,-573.13672784,0.00039506,2]
[321389434,1712113838686,-9521.02999669,0.00039506,2]
[321389437,1712113838695,-2151.77434858,0.00039506,2]
[321389440,1712113838704,-687.56794404,0.00039506,2]
[321389443,1712113838713,-448.06223413,0.00039509,2]
[321389446,1712113838722,-11478.47488437,0.00039509,4]
[321389448,1712113838732,-157.00065209,0.00039509,30]
[321389451,1712113838741,-151.0,0.00039509,2]
[321389453,1712113838749,-151.0,0.00039509,2]
[321389455,1712113838758,-151.0,0.00039509,2]
[321389457,1712113838768,-151.0,0.00039509,2]
[321389459,1712113838777,-151.0,0.00039509,2]
[321389461,1712113838787,-151.0,0.00039509,2]
[321389463,1712113838796,-151.0,0.00039509,2]
[321389465,1712113838806,-151.0,0.00039509,2]
[321389467,1712113838815,-185.52270335,0.00039512,2]
[321389469,1712113838825,-276.90211789,0.00039516,4]
[321389471,1712113838834,-365.50583545,0.00039516,4]
[321389473,1712113838845,-1586.20086349,0.00039516,4]
[321389475,1712113838855,-336.84676511,0.00039516,4]
[321389477,1712113838865,-3073.68279929,0.00039516,4]
[321389479,1712113838874,-731.21448504,0.00039516,4]
[321389481,1712113838884,-222.17946636,0.00039522,120]
[321389483,1712113838893,-161.84033535,0.00039558,7]
[321389485,1712113838902,-1500.0,0.00039617,2]
[321389487,1712113838912,-185.52270335,0.00039617,2]
[321389489,1712113838921,-1384.19771402,0.00039626,2]
[321389491,1712113838931,-163.993588,0.00039626,2]
[321389493,1712113838941,-152.44158,0.00039626,2]